bitfinex-derivatives/quotes_ETHF0:USTF0_20250626
["timestamp","ask_amount","ask_price","bid_price","bid_amount"]
[1750950203926,3.2078,2446.6,2446.1,1.4439]
[1750950204229,10.83989,2446.6,2446.5,0.81713]
[1750950204438,10.0228,2446.6,2446.5,0.81713]
[1750950204633,10.83989,2446.6,2446.5,0.81713]
[1750950204932,0.81713,2446.5,2446.4,0.81714]
[1750950205128,0.81713,2446.5,2446.1,1.4439]
[1750950205129,0.81717,2446.4,2446.1,1.4439]
[1750950205427,10.0228,2446.6,2446.0,3.2078]
[1750950205631,0.81718,2446.4,2446.0,3.2078]
[1750950205831,0.81714,2446.5,2446.4,0.81715]
[1750950206038,0.81714,2446.5,2446.3,0.81717]
[1750950206239,0.81716,2446.4,2446.3,0.81717]
[1750950206927,11.4392,2446.6,2446.4,0.81715]
[1750950207127,0.81716,2446.4,2446.3,0.81717]
[1750950207838,10.0228,2446.6,2446.3,0.81717]
[1750950208234,0.81719,2446.4,2446.2,0.81721]
[1750950208538,0.81719,2446.3,2446.2,0.81721]
[1750950209041,0.81726,2446.1,2445.9,1.91392]
[1750950209227,4.02509,2446.0,2445.9,1.0966]
[1750950209428,0.81736,2445.8,2445.7,1.3548]
[1750950209733,0.81736,2445.8,2445.6,1.1698]
[1750950209734,0.81739,2445.7,2445.6,1.1698]
[1750950210038,0.81746,2445.5,2445.4,3.2078]
[1750950210339,0.81746,2445.5,2445.4,0.81749]
[1750950210638,0.81749,2445.4,2445.3,1.1522]
[1750950211240,0.81747,2445.5,2445.1,4.3758]
[1750950211536,0.81746,2445.5,2445.3,0.8175]
[1750950211732,2.243,2445.6,2445.1,3.2078]
[1750950211938,0.81751,2445.4,2445.1,5.6955]
[1750950212124,2.243,2445.6,2445.3,0.81751]
[1750950212125,0.81748,2445.5,2445.3,0.81751]
[1750950212328,3.2078,2445.7,2445.6,0.81743]
[1750950212743,3.2078,2445.7,2445.5,0.81745]
[1750950212938,0.81745,2445.6,2445.4,0.81747]
[1750950213142,3.2078,2445.7,2445.3,2.15302]
[1750950213638,0.81748,2445.5,2445.4,0.81749]
[1750950213837,3.2078,2445.7,2445.4,0.81749]
[1750950214034,3.2078,2445.7,2445.6,0.81743]
[1750950214434,10.0258,2445.7,2445.6,0.81743]
[1750950214633,3.2078,2445.7,2445.6,0.81743]
[1750950215340,0.81747,2445.5,2445.4,0.81749]
[1750950215530,0.81747,2445.5,2445.3,2.15301]
[1750950215938,0.81747,2445.5,2445.4,0.81749]
[1750950216844,0.81753,2445.3,2445.2,0.81756]
[1750950217142,0.81753,2445.3,2445.1,5.06647]
[1750950217541,0.81748,2445.5,2445.3,0.81751]
[1750950217738,0.81749,2445.4,2445.3,0.81751]
[1750950217935,0.81752,2445.4,2445.2,2.18865]
[1750950218144,0.81752,2445.4,2445.3,1.3711]
[1750950218738,4.21315,2445.6,2445.1,3.2078]
[1750950218934,0.81755,2445.3,2445.1,4.02537]
[1750950219530,2.1695,2445.6,2445.3,0.81753]
[1750950219734,2.98696,2445.6,2445.2,1.3284]
[1750950220030,2.98696,2445.6,2445.2,2.465]
[1750950220234,1.98536,2445.6,2445.2,2.465]
[1750950220539,1.98536,2445.6,2445.5,0.81746]
[1750950220741,0.81746,2445.5,2445.4,0.81748]
[1750950220940,1.98534,2445.6,2445.5,0.81746]
[1750950221141,0.81746,2445.5,2445.4,1.81907]
[1750950221341,1.98535,2445.6,2445.5,0.81746]
[1750950221846,1.1679,2445.6,2445.5,0.81746]
[1750950222047,6.8,2445.8,2445.6,0.8174]
[1750950222249,0.81741,2445.7,2445.6,0.81742]
[1750950223147,0.81739,2445.7,2445.5,1.389]
[1750950223449,7.61738,2445.8,2445.6,0.81741]
[1750950223747,0.81742,2445.7,2445.5,2.20644]
[1750950223939,0.81743,2445.6,2445.5,1.389]
[1750950224143,0.81746,2445.5,2445.4,1.0016]
[1750950224852,0.81746,2445.5,2445.4,1.81909]
[1750950225145,3.2078,2445.6,2445.5,0.81746]
[1750950225539,3.2078,2445.6,2445.5,2.20146]
[1750950225949,4.02523,2445.6,2445.5,2.20146]
[1750950227544,4.02523,2445.6,2445.5,1.384]
[1750950227942,0.81746,2445.5,2445.4,1.0016]
[1750950228354,0.81746,2445.5,2445.4,1.81909]
[1750950228543,0.81746,2445.5,2445.4,3.23689]
[1750950228848,0.81746,2445.5,2445.4,2.4194]
[1750950229047,0.81746,2445.5,2445.4,3.23689]
[1750950229650,4.02524,2445.6,2445.5,0.81746]
[1750950230051,4.02524,2445.6,2445.5,2.23526]
[1750950230550,3.2078,2445.6,2445.5,2.23526]
[1750950231748,0.81738,2445.8,2445.7,0.81739]
[1750950232251,3.2078,2446.0,2445.8,0.81733]
[1750950232439,0.81733,2445.9,2445.8,0.81733]
[1750950233252,3.2078,2446.0,2445.9,0.81733]
[1750950233453,4.02509,2446.0,2445.9,0.81733]
[1750950233651,3.2078,2446.0,2445.9,0.81733]
[1750950233856,0.81736,2445.8,2445.7,0.81737]
[1750950234156,0.81736,2445.8,2445.7,0.81739]
[1750950237359,0.81735,2445.9,2445.8,0.81734]
[1750950238057,0.81737,2445.8,2445.7,0.81737]
[1750950238258,0.81741,2445.7,2445.6,0.8174]
[1750950238551,0.81741,2445.7,2445.6,0.81742]
[1750950238552,0.81742,2445.7,2445.6,0.81742]
[1750950239153,3.02285,2445.9,2445.4,5.81931049]
[1750950239354,0.81746,2445.5,2445.4,6.63678049]
[1750950240255,1.1699,2445.8,2445.4,5.81931049]
[1750950240559,0.81744,2445.6,2445.5,2.17816]
[1750950244271,0.81744,2445.6,2445.5,1.3607]
[1750950244770,0.81742,2445.7,2445.6,0.81741]
[1750950245270,1.1699,2445.8,2445.7,0.81739]
[1750950245568,0.81742,2445.7,2445.6,0.8174]
[1750950245763,0.81746,2445.5,2445.4,5.02686]
[1750950246169,0.81746,2445.5,2445.4,6.38416]
[1750950246371,0.81742,2445.7,2445.6,0.8174]
[1750950246767,1.98729,2445.8,2445.7,0.81739]
[1750950248669,0.9795,2445.9,2445.8,0.81736]
[1750950248873,2.43761111,2446.3,2446.2,0.81723]
[1750950249071,3.25471111,2446.6,2446.1,2.04316]
[1750950249372,8.52888,2446.7,2446.6,0.81709]
[1750950249565,7.7118,2446.7,2446.6,0.41852243]
[1750950249760,8.52886,2446.7,2446.5,0.8171]
[1750950250260,0.81709,2446.6,2446.5,0.8171]
[1750950251273,6.36605469,2446.6,2446.3,0.9589]
[1750950251467,0.81716,2446.4,2446.3,1.77609]
[1750950251665,0.81715,2446.5,2446.3,1.77609]
[1750950251864,0.81715,2446.5,2446.4,0.81716]
[1750950252070,8.52888,2446.7,2446.3,0.9589]
[1750950252265,0.81709,2446.6,2446.5,0.81711]
[1750950252465,8.52887,2446.7,2446.3,0.9589]
[1750950252670,8.52887,2446.7,2446.5,0.81711]
[1750950252874,0.81709,2446.6,2446.5,0.81711]
[1750950253171,8.52887,2446.7,2446.5,0.81713]
[1750950253571,1.72786,2446.7,2446.6,0.81709]
[1750950254068,3.2078,2446.9,2446.8,0.81703]
[1750950255574,4.02479,2446.9,2446.8,0.81703]
[1750950255773,0.81703,2446.8,2446.7,1.0036]
[1750950256076,3.2078,2446.9,2446.6,1.3281]
[1750950256077,0.81708,2446.7,2446.6,0.81709]
[1750950256262,2.77365,2446.8,2446.7,0.81706]
[1750950256673,1.9566,2446.8,2446.7,0.81706]
[1750950256875,3.2078,2446.9,2446.8,0.81703]
[1750950258377,5.1644,2447.2,2446.7,2.04264]
[1750950258578,5.1644,2447.2,2446.7,1.3577]
[1750950258778,5.98132,2447.2,2447.0,0.81694]
[1750950259180,0.81693,2447.1,2447.0,0.81694]
[1750950260179,0.81697,2447.0,2446.9,0.81699]
[1750950260372,0.81699,2446.9,2446.8,0.9676]
[1750950260678,6.36605469,2446.9,2446.3,4.41210179]
[1750950260876,6.36605469,2446.4,2446.3,0.81719]
[1750950261073,7.18321469,2446.4,2446.3,0.81719]
[1750950261379,4.02489,2446.6,2446.1,3.01072]
[1750950261679,4.02489,2446.6,2446.2,2.3091]
[1750950261881,0.81708,2446.7,2446.3,1.4083]
[1750950262083,0.951,2446.8,2446.6,0.81707]
[1750950262378,0.81708,2446.7,2446.6,0.81709]
[1750950263172,1.76805,2446.8,2446.6,0.81709]
[1750950263480,1.76805,2446.8,2446.7,0.81706]
[1750950263675,1.76803,2446.8,2446.7,0.81706]
[1750950263979,0.81706,2446.7,2446.5,0.8171]
[1750950264490,0.81708,2446.7,2446.5,0.8171]
[1750950264677,0.81708,2446.7,2446.6,0.81709]
[1750950264982,0.81706,2446.7,2446.6,0.81707]
[1750950265977,1.76805,2446.8,2446.7,0.81706]
[1750950266172,0.951,2446.8,2446.7,0.81706]
[1750950266377,3.2078,2446.9,2446.8,0.81703]
[1750950267483,4.02479,2446.9,2446.8,0.81703]
[1750950267682,3.2078,2446.9,2446.8,0.81703]
[1750950268383,3.2078,2446.9,2446.5,2.2873]
[1750950268682,4.02482,2446.9,2446.8,0.81703]
[1750950269077,9.57385469,2446.9,2446.3,5.25074]
[1750950269284,0.81703,2446.8,2446.6,0.81707]
[1750950269477,0.81703,2446.8,2446.7,0.81705]
[1750950269478,0.81705,2446.8,2446.7,0.81705]
[1750950269676,10.39086469,2446.9,2446.8,0.81703]
[1750950270174,0.81704,2446.8,2446.7,0.81704]
[1750950270580,0.81707,2446.7,2446.6,0.81708]
[1750950271284,9.57385469,2446.9,2446.4,2.344]
[1750950271484,0.81709,2446.6,2446.5,0.81713]
[1750950271685,9.57385469,2446.9,2446.4,2.344]
[1750950271686,0.81708,2446.7,2446.6,0.81708]
[1750950271887,0.8171,2446.6,2446.5,0.81711]
[1750950272385,6.09525861,2446.7,2446.6,0.81709]
[1750950272785,5.27817861,2446.7,2446.6,0.81709]
[1750950273481,10.27817861,2446.7,2446.6,0.81709]
[1750950273691,5.27817861,2446.7,2446.1,1.20381746]
[1750950273890,0.81713,2446.5,2446.4,0.81713]
[1750950274192,0.81713,2446.5,2446.3,0.81717]
[1750950274686,5.27817861,2446.7,2446.2,2.3951]
[1750950274889,4.18556861,2446.3,2446.2,0.9617]
[1750950275089,0.81726,2446.1,2446.0,4.41161746]
[1750950275485,0.81726,2446.1,2446.0,5.22890746]
[1750950276090,4.18563861,2446.1,2446.0,3.2078]
[1750950276390,4.18563861,2446.1,2446.0,4.41161746]
[1750950276581,5.28017861,2446.2,2446.0,4.41161746]
[1750950276782,0.81726,2446.1,2446.0,4.41161746]
[1750950277192,0.81726,2446.1,2446.0,5.22890746]
[1750950278090,5.28017861,2446.2,2446.1,0.81726]
[1750950278391,5.28017861,2446.2,2446.1,2.02107746]
[1750950278693,6.09740861,2446.2,2446.1,2.02107746]
[1750950279695,6.09740861,2446.2,2446.1,0.81726]
[1750950280191,5.28017861,2446.2,2446.1,0.81726]
[1750950280489,3.2078,2446.5,2446.1,4.57219607]
[1750950280689,1.8642,2446.7,2446.6,0.81709]
[1750950281289,3.2078,2446.8,2446.7,0.81706]
[1750950285797,3.2078,2446.8,2446.6,0.9405]
[1750950285998,3.2078,2446.8,2446.7,0.81706]
[1750950286694,4.02483,2446.8,2446.7,0.81706]
[1750950286885,3.2078,2446.8,2446.7,0.81706]
[1750950287186,4.02483,2446.8,2446.7,0.81706]
[1750950287897,3.2078,2446.8,2446.7,0.81706]
[1750950290904,4.02483,2446.8,2446.7,0.81706]
[1750950291496,3.2078,2446.8,2446.7,0.81706]
[1750950292500,4.02483,2446.8,2446.7,0.81706]
[1750950292903,3.2078,2446.8,2446.7,0.81706]
[1750950294197,3.2078,2446.8,2446.6,1.75757]
[1750950294394,0.81709,2446.6,2446.5,1.20624435]
[1750950294695,0.81713,2446.5,2446.4,1.20624435]
[1750950294896,0.81716,2446.4,2446.3,4.41404435]
[1750950295298,0.81716,2446.4,2446.3,5.23123435]
[1750950295697,2.2521,2446.5,2446.3,4.41404435]
[1750950295902,0.81716,2446.4,2446.3,5.23121435]
[1750950296304,0.9075,2446.5,2446.4,0.81716]
[1750950296707,1.72463,2446.5,2446.4,0.81716]
[1750950296909,0.81713,2446.5,2446.3,4.41404435]
[1750950297107,0.81713,2446.5,2446.4,0.81714]
[1750950297607,0.81712,2446.6,2446.5,0.81712]
[1750950298109,0.81713,2446.5,2446.4,0.81714]
[1750950298418,0.81715,2446.5,2446.4,0.81715]
[1750950298706,0.81712,2446.6,2446.5,0.81712]
[1750950298910,0.81716,2446.4,2446.3,4.41404435]
[1750950299603,0.81716,2446.4,2446.3,1.20624435]
[1750950299903,0.81719,2446.3,2446.2,1.20624435]
[1750950300107,0.81726,2446.1,2446.0,0.5658058]
[1750950300305,0.81736,2445.8,2445.7,2.4124887]
[1750950300499,0.81736,2445.8,2445.4,3.21665161]
[1750950300500,0.81739,2445.7,2445.5,0.81744]
[1750950300701,0.81744,2445.6,2445.5,0.9728]
[1750950300900,0.9893,2445.9,2445.6,0.81743]
[1750950301412,0.9893,2445.9,2445.5,1.79024]
[1750950301607,0.81743,2445.6,2445.5,0.9728]
[1750950301808,3.2078,2445.8,2445.4,0.81747]
[1750950301809,0.81746,2445.5,2445.4,0.81747]
[1750950302009,0.81749,2445.4,2445.3,2.16991]
[1750950302211,0.81748,2445.5,2445.4,0.81749]
[1750950302509,0.81742,2445.7,2445.5,0.81746]
[1750950302702,3.2078,2445.8,2445.4,0.81747]
[1750950302907,0.81745,2445.6,2445.5,0.81746]
[1750950303214,0.81742,2445.7,2445.5,0.81746]
[1750950303402,4.1721,2445.8,2445.5,0.81746]
[1750950303604,0.81743,2445.6,2445.5,0.81746]
[1750950303910,0.81742,2445.7,2445.5,0.81746]
[1750950304606,4.1721,2445.8,2445.5,0.81746]
[1750950304906,4.1721,2445.8,2445.6,0.81743]
[1750950305111,0.9893,2445.9,2445.8,0.81736]
[1750950305309,7.58131,2446.0,2445.9,0.81733]
[1750950305905,0.81733,2445.9,2445.8,0.81734]
[1750950306316,0.81736,2445.8,2445.7,0.81737]
[1750950306614,6.764,2446.0,2445.6,0.8767]
[1750950306811,7.58131,2446.0,2445.9,0.81733]
[1750950307010,6.764,2446.0,2445.6,0.8767]
[1750950307213,7.58131,2446.0,2445.9,0.81733]
[1750950308608,3.2078,2446.1,2446.0,0.81729]
[1750950309412,4.02506,2446.1,2446.0,0.81729]
[1750950309613,3.2078,2446.1,2446.0,0.81729]
[1750950311415,0.81727,2446.1,2445.8,4.6012]
[1750950311621,0.8173,2446.0,2445.8,4.6012]
[1750950311810,0.81722,2446.3,2446.2,0.81722]
[1750950312203,0.81723,2446.3,2446.2,0.81721]
[1750950312514,5.14127995,2446.5,2445.8,10.01305995]
[1750950312716,0.81722,2446.3,2446.2,0.81722]
[1750950312912,0.81723,2446.2,2446.1,1.70544]
[1750950313117,0.81722,2446.3,2446.2,0.81722]
[1750950314318,0.81723,2446.2,2446.1,0.8882]
[1750950314524,0.81733,2445.9,2445.8,4.6012]
[1750950314823,0.81733,2445.9,2445.8,1.74444]
[1750950315228,0.81733,2445.9,2445.8,0.9271]
[1750950315424,0.81739,2445.7,2445.6,6.75]
[1750950315733,0.81739,2445.7,2445.6,0.81743]
[1750950316425,0.81736,2445.8,2445.5,4.6355]
[1750950316728,0.81743,2445.6,2445.5,5.45294]
[1750950316931,0.81742,2445.7,2445.6,0.81742]
[1750950317329,0.81743,2445.6,2445.5,5.45294]
[1750950317724,0.81742,2445.7,2445.5,5.45294]
[1750950317924,0.81742,2445.7,2445.6,0.81743]
[1750950318625,0.81739,2445.8,2445.7,0.81739]
[1750950319135,0.81739,2445.7,2445.6,0.8174]
[1750950319328,3.2078,2445.9,2445.5,2.24513]
[1750950319529,5.25118,2445.9,2445.4,2.62757]
[1750950319731,0.81746,2445.5,2445.4,2.62759]
[1750950320032,0.81746,2445.5,2445.4,1.74459]
[1750950320229,0.81746,2445.5,2445.4,0.9271]
[1750950321328,3.2078,2445.6,2445.5,0.81746]
[1750950321739,3.2078,2445.6,2445.5,2.22016]
[1750950322734,4.145,2446.0,2445.5,3.44629]
[1750950322930,4.02511,2446.0,2445.9,0.81733]
[1750950323136,0.81734,2445.9,2445.8,0.81735]
[1750950323332,3.2078,2446.0,2445.8,0.81735]
[1750950323537,4.02511,2446.0,2445.9,0.81733]
[1750950324039,3.2078,2446.0,2445.9,0.81733]
[1750950324233,0.9346,2446.3,2446.1,0.81725]
[1750950324532,1.75183,2446.3,2446.2,0.81723]
[1750950325538,0.9346,2446.3,2445.9,1.392]
[1750950325930,0.81724,2446.2,2446.1,0.81725]
[1750950326640,0.81729,2446.1,2446.0,0.81729]
[1750950326836,0.81726,2446.1,2446.0,0.81729]
[1750950327639,0.81729,2446.0,2445.8,4.92784]
[1750950327938,9.58119788,2445.9,2445.6,0.9635]
[1750950328243,0.81742,2445.7,2445.5,1.73874]
[1750950328541,2.65118,2445.8,2445.6,0.81743]
[1750950328934,0.81739,2445.7,2445.6,0.81743]
[1750950329136,0.8174,2445.7,2445.6,0.81741]
[1750950329441,0.81743,2445.6,2445.5,0.9213]
[1750950329744,0.81749,2445.4,2445.3,3.2078]
[1750950330239,0.81749,2445.4,2445.3,4.82318547]
[1750950331936,0.81749,2445.4,2445.3,3.2078]
[1750950332442,0.81756,2445.2,2445.1,1.61538547]
[1750950332632,0.81749,2445.4,2445.2,0.81755]
[1750950333040,0.81749,2445.4,2445.2,2.43293547]
[1750950333241,0.81749,2445.4,2445.2,1.61538547]
[1750950333439,0.8515,2445.5,2445.4,0.81749]
[1750950334039,3.2078,2445.6,2445.5,0.81746]
[1750950334636,3.2078,2445.6,2445.5,2.26306]
[1750950335544,7.56837,2445.8,2445.5,1.4456]
[1750950335936,0.81739,2445.7,2445.6,0.81743]
[1750950336130,7.56838,2445.8,2445.7,0.81739]
[1750950336338,7.56838,2445.8,2445.6,0.8174]
[1750950336838,0.81739,2445.7,2445.6,0.8174]
[1750950337038,0.81739,2445.7,2445.5,1.4456]
[1750950337237,7.56838,2445.8,2445.6,0.81743]
[1750950337447,7.56838,2445.8,2445.7,0.81739]
[1750950337646,7.56838,2445.8,2445.6,0.8174]
[1750950337847,7.56838,2445.8,2445.7,0.81739]
[1750950338146,7.56838,2445.8,2445.6,0.8174]
[1750950338345,0.81739,2445.7,2445.6,0.8174]
[1750950338940,7.56837,2445.8,2445.6,0.8174]
[1750950339246,0.81739,2445.7,2445.5,2.26304]
[1750950339545,6.751,2445.8,2445.7,0.81739]
[1750950340245,7.56836,2445.8,2445.7,0.81739]
[1750950340442,6.751,2445.8,2445.7,0.81739]
[1750950340644,1.7925,2446.1,2445.5,6.69698]
[1750950340844,8.5435,2446.1,2445.6,3.37043149]
[1750950341042,9.36078,2446.1,2445.9,0.8173]
[1750950341348,0.81729,2446.0,2445.9,0.8173]
[1750950341544,0.81735,2445.9,2445.7,3.04986]
[1750950341750,3.37043149,2446.0,2445.7,2.2325]
[1750950342047,0.81733,2445.9,2445.8,0.81736]
[1750950342242,3.37043149,2446.0,2445.7,0.91]
[1750950342243,4.18774149,2446.0,2445.9,0.81733]
[1750950342439,4.18772149,2446.0,2445.9,0.81733]
[1750950343044,0.81734,2445.9,2445.8,0.81735]
[1750950343246,3.26258643,2446.5,2445.8,18.32923149]
[1750950343439,7.45012792,2446.6,2446.4,0.81716]
[1750950343638,6.63301792,2446.6,2446.3,3.2078]
[1750950343943,6.63301792,2446.6,2446.5,0.81713]
[1750950344147,4.07965643,2446.7,2446.5,0.81713]
[1750950344348,3.26258643,2446.6,2446.5,0.81713]
[1750950344646,6.63301792,2446.6,2446.3,4.02498]
[1750950344946,3.26258643,2446.7,2446.6,0.81709]
[1750950345242,3.26291453,2446.9,2446.8,0.81703]
[1750950345447,3.26291453,2447.0,2446.9,0.81699]
[1750950345650,3.26291453,2447.1,2447.0,0.81696]
[1750950345948,3.26291453,2447.1,2447.0,4.18739149]
[1750950346143,3.26291453,2447.1,2447.0,10.54529149]
[1750950346447,3.26291453,2447.5,2447.4,0.81683]
[1750950346750,3.26291453,2447.5,2447.4,3.2078]
[1750950347249,6.737,2447.6,2447.4,3.2078]
[1750950347450,7.55379,2447.6,2447.4,4.02463]
[1750950347761,0.81679,2447.5,2447.4,3.2078]
[1750950347943,7.55378,2447.6,2447.4,4.02462]
[1750950348545,7.55378,2447.6,2447.4,3.2078]
[1750950348844,6.737,2447.6,2447.4,4.02462]
[1750950349043,6.737,2447.6,2447.5,0.81679]
[1750950349641,6.737,2447.6,2447.5,2.24059]
[1750950350543,7.55376,2447.6,2447.5,2.24059]
[1750950350743,6.737,2447.6,2447.5,2.24059]
[1750950350944,6.737,2447.6,2447.4,3.2078]
[1750950351244,0.81679,2447.5,2447.4,3.2078]
[1750950355551,7.55378,2447.6,2447.4,3.2078]
[1750950355752,0.81679,2447.5,2447.4,3.2078]
[1750950357842,5.24926,2448.2,2447.4,8.2078]
[1750950358054,2.2919,2448.2,2447.7,3.2078]
[1750950358351,1.72638,2448.2,2448.0,4.02441]
[1750950359048,1.72638,2448.2,2448.1,0.81659]
[1750950359553,0.81659,2448.1,2448.0,4.0244]
[1750950359742,0.81659,2448.1,2448.0,3.2078]
[1750950360754,0.81659,2448.1,2448.0,4.02443]
[1750950360946,1.72638,2448.2,2448.0,4.0244]
[1750950361254,0.81659,2448.1,2448.0,3.2078]
[1750950361454,1.72638,2448.2,2448.0,4.02443]
[1750950361755,0.81659,2448.1,2448.0,4.02443]
[1750950361957,0.81659,2448.1,2448.0,3.2078]
[1750950363052,1.72639,2448.2,2448.0,3.2078]
[1750950363256,1.72639,2448.2,2448.1,0.81659]
[1750950363447,0.81659,2448.2,2448.1,0.81659]
[1750950364053,0.81659,2448.2,2448.0,4.0244]
[1750950364453,0.81659,2448.1,2448.0,4.0244]
[1750950365050,0.81659,2448.1,2448.0,3.2078]
[1750950365258,2.04165,2447.9,2447.0,3.2078]
[1750950365453,3.2078,2447.5,2447.0,4.6054]
[1750950365753,0.81702,2446.9,2446.7,3.2078]
[1750950365951,6.732,2446.9,2446.4,7.02785]
[1750950366141,6.732,2446.9,2446.4,6.2107]
[1750950366549,0.81713,2446.5,2446.4,3.2078]
[1750950366860,0.81723,2446.3,2446.1,3.2078]
[1750950367158,0.81723,2446.2,2446.1,3.2078]
[1750950367953,0.81739,2445.7,2445.6,4.6054]
[1750950368155,0.81741,2445.7,2445.5,3.2078]
[1750950368456,0.81743,2445.6,2445.5,3.2078]
[1750950368866,6.732,2445.8,2445.2,3.2078]
[1750950368867,0.81751,2445.4,2445.2,3.2078]
[1750950369156,7.54951,2445.4,2445.2,3.2078]
[1750950369548,6.732,2445.4,2445.2,3.2078]
[1750950369751,6.732,2445.4,2445.3,1.3763]
[1750950369955,6.732,2445.4,2445.3,2.19383]
[1750950370453,1.3492,2446.0,2445.5,0.81743]
[1750950370755,0.81738,2445.8,2445.6,3.2078]
[1750950370959,0.81746,2445.5,2445.3,4.5841]
[1750950371154,1.3641,2445.8,2445.3,4.5841]
[1750950371354,1.3641,2445.8,2445.4,0.81747]
[1750950371355,0.81741,2445.7,2445.4,0.81747]
[1750950371760,0.81741,2445.7,2445.4,2.23807]
[1750950371955,1.3641,2445.8,2445.5,0.81746]
[1750950372258,3.2078,2446.0,2445.4,1.4206]
[1750950372563,6.734,2445.9,2445.6,0.81739]
[1750950372760,6.734,2446.0,2445.9,0.81733]
[1750950372950,3.61461582,2447.2,2445.8,11.61484088]
[1750950373149,3.2078,2446.9,2446.0,3.2078]
[1750950373363,0.8171,2446.6,2446.3,0.81719]
[1750950373565,6.735,2446.6,2446.4,0.81716]
[1750950374260,6.735,2446.6,2446.3,4.02498]
[1750950374455,6.735,2446.6,2446.3,4.02499]
[1750950374846,6.735,2446.6,2446.4,0.81713]
[1750950375257,6.735,2446.6,2446.3,3.2078]
[1750950375258,6.735,2446.6,2446.5,0.81713]
[1750950375756,4.5719,2446.9,2446.5,0.81713]
[1750950375956,4.5719,2446.9,2446.1,1.4206]
[1750950375957,3.2078,2447.2,2446.6,3.2078]
[1750950376159,0.81706,2446.7,2446.6,3.2078]
[1750950376459,6.728,2446.7,2446.6,4.02489]
[1750950376654,0.81703,2446.9,2446.6,4.02489]
[1750950376958,1.3224,2447.1,2446.6,3.2078]
[1750950377160,6.728,2447.0,2446.6,3.2078]
[1750950377348,0.81706,2446.7,2446.6,3.2078]
[1750950377959,0.81704,2446.8,2446.6,3.2078]
[1750950378165,0.81702,2446.9,2446.6,4.02488]
[1750950378365,0.81703,2446.8,2446.6,4.02488]
[1750950378555,0.81706,2446.7,2446.6,3.2078]
[1750950378759,0.81704,2446.8,2446.6,3.2078]
[1750950379158,0.81706,2446.7,2446.6,3.2078]
[1750950379857,0.81719,2446.3,2446.2,3.2078]
[1750950380063,0.81728,2446.1,2445.9,3.2078]
[1750950380265,0.81729,2446.0,2445.9,3.2078]
[1750950380459,0.81742,2445.7,2445.5,2.2315]
[1750950380666,0.81746,2445.5,2445.4,3.2078]
[1750950381862,0.8275,2445.9,2445.4,3.2078]
[1750950382068,7.54637,2445.8,2445.4,3.2078]
[1750950382263,6.729,2445.8,2445.5,1.4008]
[1750950382567,6.729,2445.8,2445.7,4.02519]
[1750950383168,0.81731,2446.0,2445.8,0.81735]
[1750950383371,6.729,2445.9,2445.8,0.81735]
[1750950383571,6.729,2445.9,2445.8,2.19545]
[1750950384275,0.81731,2446.0,2445.8,2.19545]
[1750950384574,6.729,2445.9,2445.8,2.19546]
[1750950385173,7.54633,2445.9,2445.7,4.02517]
[1750950385374,0.81736,2445.8,2445.7,3.2078]
[1750950385577,7.54634,2445.9,2445.7,4.02519]
[1750950386376,6.729,2445.9,2445.8,0.81736]
[1750950386675,7.54634,2445.9,2445.7,4.02518]
[1750950387076,7.54634,2445.9,2445.7,3.2078]
[1750950387279,7.54634,2445.9,2445.7,4.02517]
[1750950388277,6.729,2445.9,2445.8,0.81736]
[1750950388673,83.73011088,2446.4,2445.8,1.3963]
[1750950388674,0.81726,2446.1,2445.8,1.3963]
[1750950388978,6.729,2446.1,2446.0,4.02509]
[1750950389281,6.729,2446.2,2446.0,3.2078]
[1750950389472,7.54626,2446.2,2446.1,1.4362]
[1750950389772,7.54623,2446.2,2446.1,1.4362]
[1750950390784,6.729,2446.2,2446.1,2.25346]
[1750950391074,6.729,2446.2,2446.1,0.81726]
[1750950391275,6.729,2446.2,2446.1,2.25346]
[1750950391478,7.54623,2446.2,2446.1,1.4362]
[1750950391780,0.81726,2446.1,2446.0,3.2078]
[1750950391981,0.81726,2446.1,2445.9,1.65861]
[1750950392173,0.81729,2446.0,2445.9,0.8413]
[1750950392373,6.729,2446.2,2445.9,0.81731]
[1750950392374,0.81726,2446.1,2445.9,0.81731]
[1750950392574,0.81729,2446.0,2445.9,0.81731]
[1750950392787,0.81729,2446.0,2445.8,1.65644]
[1750950393080,0.81729,2446.0,2445.8,2.99194]
[1750950393276,6.729,2446.2,2445.8,2.1746]
[1750950393483,0.81736,2445.8,2445.7,3.2078]
[1750950393873,7.54636,2445.8,2445.7,3.2078]
[1750950395983,7.54636,2445.8,2445.7,4.02519]
[1750950396585,7.54636,2445.8,2445.7,3.2078]
[1750950399886,8.95116,2445.8,2445.7,3.2078]
[1750950400383,7.54636,2445.8,2445.7,3.2078]
[1750950402881,7.54636,2445.8,2445.7,4.0252]
[1750950402882,6.729,2445.8,2445.7,4.0252]
[1750950403186,7.54636,2445.8,2445.7,3.2078]
[1750950403380,0.81728,2446.1,2445.9,0.81731]
[1750950403581,7.5473,2446.0,2445.9,0.81731]
[1750950403786,6.73,2446.0,2445.9,0.81731]
[1750950404189,6.73,2446.0,2445.9,2.20851]
[1750950404392,7.5473,2446.0,2445.9,1.3912]
[1750950405290,6.73,2446.0,2445.9,2.20853]
[1750950406784,7.5473,2446.0,2445.9,2.20853]
[1750950406990,6.73,2446.0,2445.9,2.20853]
[1750950407390,0.81725,2446.2,2446.0,0.81727]
[1750950407593,6.726,2446.1,2446.0,0.81727]